fUST/lending_fUST_20260215
["ID","MTS","AMOUNT","RATE_DAILY","PERIOD"]
[405388665,1771127446130,-500.0,0.00018998,2]
[405388666,1771127446139,-500.0,0.00018998,2]
[405388667,1771127446148,-500.0,0.00018998,2]
[405388668,1771127446158,-500.0,0.00018998,2]
[405388669,1771127446166,-339.70220518,0.00018998,2]
[405388670,1771127446175,-216.97487109,0.00018998,2]
[405388671,1771127446184,-607.18883706,0.00018998,2]
[405388672,1771127446193,-401.19976642,0.00018998,2]
[405388673,1771127446202,-500.0,0.00018998,2]
[405388674,1771127446212,-3778.93995287,0.00019,2]
[405388675,1771127446221,-2603.49,0.00019,2]
[405388676,1771127446231,-500.0,0.00019,2]
[405388677,1771127446240,-168.0,0.00019018,2]
[405388678,1771127446250,-500.0,0.00019036,2]
[405388679,1771127446259,-781.9171592,0.00019037,2]
[405388680,1771127446268,-168.0,0.00019086,2]
[405388681,1771127446278,-168.0,0.0001911,2]
[405388682,1771127446287,-188.70833915,0.00019325,2]
[405388683,1771127446297,-4867.100695,0.00019326,2]
[405388684,1771127446306,-7969.76584194,0.00019336,2]
[405388685,1771127446316,-1527.0,0.00019338,2]
[405388686,1771127446328,-168.0,0.00019436,2]
[405388687,1771127446339,-168.0,0.0001946,2]
[405388688,1771127446349,-168.0,0.00019474,2]
[405388690,1771127446358,-197.0,0.0001978,2]
[405388691,1771127446367,-420.0,0.00019781,2]
[405388692,1771127446377,-284.86198359,0.00019792,2]
[405388693,1771127446386,-168.28785032,0.00019792,2]
[405388694,1771127446395,-500.0,0.00019792,2]
[405388695,1771127446406,-500.0,0.00019792,2]
[405388696,1771127446417,-500.0,0.00019792,2]
[405388697,1771127446427,-500.0,0.00019792,2]
[405388698,1771127446436,-500.0,0.00019792,2]
[405388699,1771127446446,-500.0,0.00019792,2]
[405388700,1771127446455,-255.96279351,0.00019792,2]
[405388701,1771127446464,-500.0,0.00019792,2]
[405388702,1771127446474,-150.0,0.00019792,2]
[405388703,1771127446483,-150.0,0.00019792,2]
[405388704,1771127446493,-500.0,0.00019792,2]
[405388705,1771127446502,-150.0,0.00019792,2]
[405388706,1771127446511,-212.89531139,0.00019792,2]
[405388707,1771127446521,-150.0,0.00019792,2]
[405388708,1771127446530,-152.33037944,0.00019792,2]
[405388709,1771127446540,-174.13982207,0.00019792,2]
[405388710,1771127446549,-500.0,0.00019792,2]
[405388711,1771127446559,-154.13297903,0.00019792,2]
[405388712,1771127446569,-500.0,0.00019792,2]
[405388713,1771127446579,-150.0,0.00019792,2]
[405388714,1771127446589,-500.0,0.00019792,2]
[405388715,1771127446598,-752.81382598,0.00019843,7]
[405388716,1771127446607,-500.0,0.00019847,2]
[405388717,1771127446617,-500.0,0.00019847,2]
[405388718,1771127446626,-500.0,0.00019847,2]
[405388719,1771127446636,-500.0,0.00019847,2]
[405388720,1771127446645,-584.90483733,0.00019847,2]
[405388721,1771127446654,-500.0,0.00019847,2]
[405388722,1771127446665,-500.0,0.00019847,2]
[405388723,1771127446674,-150.0,0.00019847,2]
[405388724,1771127446683,-150.57053047,0.00019847,2]
[405388725,1771127446692,-500.0,0.00019847,2]
[405388726,1771127446701,-150.0,0.00019847,2]
[405388727,1771127446710,-150.56041811,0.00019847,2]
[405388728,1771127446720,-500.0,0.00019847,2]
[405388729,1771127446730,-500.0,0.00019847,2]
[405388730,1771127446739,-150.0,0.00019847,2]
[405388731,1771127446748,-2963.0,0.00019868,2]
[405388732,1771127446757,-500.0,0.00019901,2]
[405388733,1771127446767,-500.0,0.00019902,2]
[405388734,1771127446776,-500.0,0.00019902,2]
[405388735,1771127446785,-500.0,0.00019902,2]
[405388736,1771127446794,-505.45120537,0.00019902,2]
[405388737,1771127446802,-502.36194866,0.00019902,2]
[405388738,1771127446812,-500.0,0.00019902,2]
[405388739,1771127446823,-150.0,0.00019902,2]
[405388740,1771127446832,-213.64538536,0.00019902,2]
[405388741,1771127446841,-186.89188245,0.00019902,2]
[405388742,1771127446851,-500.0,0.00019902,2]
[405388743,1771127446861,-233.88820602,0.00019902,2]
[405388744,1771127446870,-150.0,0.00019902,2]
[405388745,1771127446880,-500.0,0.00019956,2]
[405388746,1771127446890,-500.0,0.00019956,2]
[405388747,1771127446899,-500.0,0.00019956,2]
[405388748,1771127446908,-500.0,0.00019956,2]
[405388749,1771127446918,-150.0,0.00019956,2]
[405388750,1771127446928,-500.0,0.00019956,2]
[405388751,1771127446937,-150.0,0.00019956,2]
[405388752,1771127446947,-500.0,0.00019999,2]
[405388753,1771127446956,-9000.0,0.00019999,2]
[405388754,1771127446966,-2283.87689333,0.00019999,2]
[405388755,1771127446975,-220.80318596,0.00019999,2]
[405388756,1771127446984,-432.87730383,0.00019999,2]
[405388757,1771127446994,-397.44573473,0.00019999,2]
[405388758,1771127447004,-705.86362487,0.00019999,2]
[405388759,1771127447013,-13973.52804661,0.0002,5]
[405388760,1771127447075,-3163.91173982,0.0002,5]
[405388761,1771127447084,-921.64530477,0.0002,20]
[405388762,1771127447094,-580.28274574,0.0002,2]
[405388763,1771127447103,-152.60643497,0.0002,2]
[405388764,1771127447113,-500.0,0.00020011,2]
[405388765,1771127447123,-446.17870997,0.00020011,2]
[405388766,1771127447133,-500.0,0.00020011,2]
[405388767,1771127447143,-500.0,0.00020011,2]
[405388768,1771127447152,-251.19222817,0.00020011,2]
[405388769,1771127447162,-500.0,0.00020011,2]
[405388770,1771127447171,-150.0,0.00020011,2]
[405388771,1771127447180,-500.0,0.00020047,2]
[405388772,1771127447190,-3281.0318133,0.00020048,2]
[405388773,1771127447199,-2510.93502504,0.00020048,2]
[405388774,1771127447863,-2356.16566996,0.00020048,2]
[405388775,1771127447873,-630.877447,0.00020066,2]
[405388776,1771127447882,-500.0,0.00020066,2]
[405388777,1771127447892,-500.0,0.00020066,2]
[405388778,1771127447902,-500.0,0.00020066,2]
[405388779,1771127447911,-187.00031284,0.00020066,2]
[405388780,1771127447920,-474.55026607,0.00020066,2]
[405388781,1771127447930,-495.16538194,0.00020066,2]
[405388782,1771127447940,-891.29768749,0.00020066,2]
[405388783,1771127447949,-1582.94469299,0.00020066,2]
[405388784,1771127447959,-854.19047892,0.00020066,2]
[405388785,1771127447969,-500.0,0.00020121,2]
[405388786,1771127447978,-500.0,0.00020121,2]
[405388787,1771127447988,-278.76119084,0.00020121,2]
[405388788,1771127447998,-500.0,0.00020176,2]
[405388789,1771127448007,-500.0,0.00020176,2]
[405388790,1771127448016,-500.0,0.0002023,2]
[405388791,1771127448026,-162.92012363,0.0002023,2]
[405388792,1771127448036,-500.0,0.0002023,2]
[405388793,1771127448045,-151.0,0.00020241,2]
[405388794,1771127448054,-151.0,0.00020241,2]
[405388795,1771127448064,-77.75487566,0.00020241,2]
[405388796,1771127448075,-1922.24512434,0.00020241,2]
[405388797,1771127448085,-166.0969756,0.00020241,2]
[405388798,1771127448094,-2074.0,0.00020241,2]
[405388799,1771127448103,-985.98776754,0.00020241,2]
[405388800,1771127448113,-250.0,0.00020241,2]
[405388801,1771127448122,-250.0,0.00020241,2]
[405388802,1771127448132,-250.0,0.00020241,2]
[405388803,1771127448142,-250.0,0.00020241,2]
[405388804,1771127448151,-250.0,0.00020241,2]
[405388805,1771127448161,-250.0,0.00020241,2]
[405388806,1771127448170,-250.0,0.00020241,2]
[405388807,1771127448179,-250.0,0.00020241,2]
[405388808,1771127448189,-250.0,0.00020241,2]
[405388809,1771127448199,-182.78368509,0.00020241,2]
[405388810,1771127567827,1000.0,0.00030136,120]
[405388811,1771127639959,1000.0,0.00030136,120]
[405388812,1771127685198,1000.0,0.00030136,120]
[405388813,1771128139240,1000.0,0.00030136,120]
[405388814,1771128215235,1000.0,0.00030136,120]
[405388815,1771128309756,934.90598835,0.00030136,120]
[405388880,1771128643866,-471.34640907,0.00016828,3]
[405388881,1771128644548,-588.78718346,0.00016828,3]
[405388882,1771128644557,-46.00181645,0.00016976,2]
[405388883,1771128644569,-103.99818355,0.00016976,2]
[405388884,1771128644578,-2388.590633,0.00018731,2]
[405388885,1771128644587,-177.0,0.00018976,2]
[405388886,1771128644597,-163.65785473,0.00019232,2]
[405388887,1771128644607,-194.0,0.00019286,2]
[405388888,1771128644616,-194.0,0.00019293,2]
[405388889,1771128644625,-194.0,0.00019499,2]
[405388890,1771128644635,-194.0,0.00019523,2]
[405388891,1771128644644,-168.0,0.00019552,2]
[405388892,1771128644653,-168.0,0.00019667,2]
[405388893,1771128644665,-194.0,0.00019735,2]
[405388894,1771128644674,-194.0,0.00019764,2]
[405388895,1771128644683,-168.0,0.00019815,2]
[405388896,1771128644696,-194.0,0.00019869,2]
[405388897,1771128644705,-168.0,0.00019909,2]
[405388898,1771128644714,-500.0,0.00019956,2]
[405388899,1771128644723,-168.0,0.00019984,2]
[405388900,1771128644733,-500.0,0.00020011,2]
[405388901,1771128644743,-440.62813975,0.00020066,2]
[405388902,1771128644752,-1517.04229057,0.00020066,2]
[405388903,1771128644762,-300.0,0.00020098,2]
[405388904,1771128644771,-215.2792563,0.00020099,2]
[405388905,1771128644780,-163.3529553,0.00020099,2]
[405388906,1771128644789,-3386.3159256,0.00020099,2]
[405388907,1771128644798,-6973.54511168,0.00020116,2]
[405388908,1771128644807,-250.0,0.00020204,2]
[405388909,1771128644816,-500.0,0.00020204,2]
[405388910,1771128644825,-250.0,0.00020204,2]
[405388911,1771128644834,-500.0,0.00020204,2]
[405388912,1771128644844,-250.0,0.00020204,2]
[405388913,1771128644853,-500.0,0.00020204,2]
[405388914,1771128644862,-250.0,0.00020204,2]
[405388915,1771128644871,-250.0,0.00020204,2]
[405388916,1771128644880,-500.0,0.00020204,2]
[405388917,1771128644889,-250.0,0.00020204,2]
[405388918,1771128644899,-250.0,0.00020204,2]
[405388919,1771128644909,-250.0,0.00020204,2]
[405388920,1771128644918,-500.0,0.00020204,2]
[405388921,1771128644927,-354.33178874,0.00020204,2]
[405388922,1771128644936,-250.0,0.00020204,2]
[405388923,1771128644945,-250.0,0.00020204,2]
[405388924,1771128644954,-500.0,0.00020204,2]
[405388925,1771128644963,-270.56129644,0.00020204,2]
[405388926,1771128644973,-250.0,0.00020204,2]
[405388927,1771128644983,-500.0,0.00020204,2]
[405388928,1771128644992,-250.0,0.00020204,2]
[405388929,1771128645001,-500.0,0.00020204,2]
[405388930,1771128645010,-250.0,0.00020204,2]
[405388931,1771128645019,-250.0,0.00020204,2]
[405388932,1771128645029,-500.0,0.00020204,2]
[405388933,1771128645039,-250.0,0.00020204,2]
[405388934,1771128645049,-250.0,0.00020204,2]
[405388935,1771128645058,-250.0,0.00020204,2]
[405388936,1771128645067,-500.0,0.00020204,2]
[405388937,1771128645076,-250.0,0.00020204,2]
[405388938,1771128645085,-250.0,0.00020204,2]
[405388939,1771128645095,-250.0,0.00020204,2]
[405388940,1771128645105,-500.0,0.00020204,2]
[405388941,1771128645114,-250.0,0.00020204,2]
[405388942,1771128645123,-250.0,0.00020204,2]
[405388943,1771128645133,-250.0,0.00020204,2]
[405388944,1771128645144,-500.0,0.00020204,2]
[405388945,1771128645153,-250.0,0.00020204,2]
[405388946,1771128645162,-250.0,0.00020204,2]
[405388947,1771128645171,-268.51048749,0.00020204,2]
[405388949,1771128645180,-500.0,0.00020204,2]
[405388950,1771128645190,-250.0,0.00020204,2]
[405388952,1771128645199,-250.0,0.00020204,2]
[405388954,1771128645208,-250.0,0.00020204,2]
[405388956,1771128645217,-250.0,0.00020204,2]
[405388957,1771128645226,-250.0,0.00020204,2]
[405388959,1771128645235,-250.0,0.00020204,2]
[405388960,1771128645244,-250.0,0.00020204,2]
[405388961,1771128645254,-250.0,0.00020204,2]
[405388962,1771128645263,-250.0,0.00020204,2]
[405388963,1771128645272,-250.0,0.00020204,2]
[405388964,1771128645281,-250.0,0.00020204,2]
[405388965,1771128645290,-250.0,0.00020204,2]
[405388966,1771128645299,-250.0,0.00020204,2]
[405388967,1771128645307,-250.0,0.00020204,2]
[405388968,1771128645316,-250.0,0.00020204,2]
[405388969,1771128645325,-250.0,0.00020204,2]
[405388970,1771128645334,-250.0,0.00020204,2]
[405388971,1771128645344,-250.0,0.00020204,2]
[405388972,1771128645353,-250.0,0.00020204,2]
[405388973,1771128645363,-250.0,0.00020204,2]
[405388974,1771128645373,-194.72792766,0.00020204,2]
[405388975,1771128645382,-250.0,0.00020204,2]
[405388976,1771128645391,-201.93286099,0.00020204,2]
[405388977,1771128645401,-500.0,0.00020204,2]
[405388978,1771128645411,-250.0,0.00020204,2]
[405388979,1771128645420,-209.40437684,0.00020204,2]
[405388980,1771128645430,-500.0,0.00020204,2]
[405388981,1771128645439,-250.0,0.00020204,2]
[405388982,1771128645449,-217.15233878,0.00020204,2]
[405388983,1771128645458,-500.0,0.00020204,2]
[405388984,1771128645467,-250.0,0.00020204,2]
[405388985,1771128645476,-225.18697532,0.00020204,2]
[405388986,1771128645486,-500.0,0.00020204,2]
[405388987,1771128645496,-250.0,0.00020204,2]
[405388988,1771128645506,-233.51889341,0.00020204,2]
[405388989,1771128645515,-500.0,0.00020204,2]
[405388990,1771128645524,-250.0,0.00020204,2]
[405388991,1771128645533,-242.15909246,0.00020204,2]
[405388992,1771128645543,-500.0,0.00020204,2]
[405388993,1771128645552,-250.0,0.00020204,2]
[405388994,1771128645562,-251.11897888,0.00020204,2]
[405388995,1771128645571,-500.0,0.00020204,2]
[405388996,1771128645581,-250.0,0.00020204,2]
[405388997,1771128645590,-260.4103811,0.00020204,2]
[405388998,1771128645600,-500.0,0.00020204,2]
[405388999,1771128645609,-250.0,0.00020204,2]
[405389000,1771128645619,-270.0455652,0.00020204,2]
[405389001,1771128645628,-500.0,0.00020204,2]
[405389002,1771128645638,-250.0,0.00020204,2]
[405389003,1771128645648,-280.03725112,0.00020204,2]
[405389004,1771128645657,-500.0,0.00020204,2]
[405389005,1771128645666,-290.39862941,0.00020204,2]
[405389006,1771128645676,-500.0,0.00020204,2]
[405389007,1771128645685,-301.1433787,0.00020204,2]
[405389008,1771128645695,-500.0,0.00020204,2]
[405389009,1771128645708,-178.57653745,0.00020215,2]
[405389010,1771128645717,-190.77498568,0.00020215,2]
[405389011,1771128645836,-155.68886294,0.00020215,2]
[405389012,1771128645848,-500.0,0.0002024,2]
[405389013,1771128645858,-500.0,0.0002024,2]
[405389015,1771128645867,-500.0,0.0002024,2]
[405389017,1771128645876,-500.0,0.0002024,2]
[405389018,1771128645886,-505.13079781,0.0002024,2]
[405389019,1771128645895,-500.0,0.00020478,2]
[405389020,1771128645906,-2797.0,0.00020575,2]
[405389021,1771128645915,-500.0,0.00020752,2]
[405389022,1771128645925,-4867.100695,0.00020771,2]
[405389023,1771128645934,-500.0,0.00020947,2]
[405389024,1771128645943,-500.0,0.00020947,2]
[405389025,1771128645953,-204.0,0.00020976,2]
[405389026,1771128645963,-1149.1,0.00021,2]
[405389027,1771128645972,-5015.81082769,0.00021,5]
[405389032,1771129768208,-216.82340186,0.00016,2]
[405389033,1771129768230,-11.16891582,0.00016999,2]
[405389098,1771129840058,-317.948099,0.00016652,2]
[405389099,1771129840070,-350.84615109,0.00016829,2]
[405389111,1771129844160,-120.50025798,0.00016829,2]
[405389113,1771129844171,-300.0,0.00016999,2]
[405389115,1771129844182,-300.0,0.00016999,2]
[405389117,1771129844192,-829.0,0.00016999,2]
[405389119,1771129844203,-901.88861006,0.00017,2]
[405389122,1771129844215,-9718.68720796,0.00017,2]
[405389138,1771129844887,-5340.28378332,0.00017,2]
[405389139,1771129844897,-208.52518531,0.00017093,2]
[405389140,1771129844907,-150.0,0.00017368,2]
[405389141,1771129844918,-150.0,0.00017808,2]
[405389142,1771129844928,-850.32,0.0001799,3]
[405389143,1771129844939,-425.16,0.0001799,3]
[405389144,1771129844949,-212.58,0.0001799,3]
[405389145,1771129844960,-637.76,0.0001799,3]
[405389146,1771129844970,-92374.31128368,0.00018,2]
[405389154,1771129890585,-588.78718346,0.0001683,2]
[405389155,1771129907327,-150.0,0.00017046,2]
[405389156,1771129907357,-26.6044905,0.00017999,2]
[405389307,1771131038041,-5028.8371495,0.00016979,2]
[405389308,1771131038051,-272.09272873,0.000178,2]
[405389311,1771131043318,255416.46068273,0.0003013,120]
[405389328,1771131045368,-15.89958204,0.000178,2]
[405389329,1771131045377,-150.0,0.00017802,2]
[405389330,1771131045387,-150.0,0.00017808,2]
[405389331,1771131045397,-251.94642864,0.00017998,2]
[405389332,1771131045424,-48.05357136,0.00017998,2]
[405389333,1771131045433,-246.0,0.00017998,2]
[405389334,1771131045443,-500.0,0.00017999,2]
[405389335,1771131045451,-500.0,0.00017999,2]
[405389336,1771131045462,-500.0,0.00017999,2]
[405389337,1771131045471,-500.0,0.00017999,2]
[405389338,1771131045480,-500.0,0.00017999,2]
[405389339,1771131045489,-500.0,0.00017999,2]
[405389340,1771131045498,-500.0,0.00017999,2]
[405389341,1771131045507,-500.0,0.00017999,2]
[405389342,1771131045516,-500.0,0.00017999,2]
[405389343,1771131045525,-500.0,0.00017999,2]
[405389344,1771131045534,-500.0,0.00017999,2]
[405389345,1771131045543,-415.39167396,0.00017999,2]
[405389346,1771131045553,-500.0,0.00017999,2]
[405389347,1771131045563,-5938.69684966,0.00018,2]
[405389348,1771131045574,-580.56103853,0.00018,2]
[405389351,1771131046018,-4391.56255598,0.00018,2]
[405389353,1771131046928,-916.51108925,0.00018,2]
[405389354,1771131046941,-10938.62336314,0.00018,2]
[405389355,1771131483034,200.27742265,0.00030074,120]
[405389357,1771132164115,-884.84180293,0.00016162,2]
[405389471,1771132238180,-18.65163008,0.00016162,2]
[405389473,1771132238190,-473.31955746,0.00016964,7]
[405389475,1771132238199,-150.0,0.00017051,2]
[405389477,1771132238209,-165.9747548,0.00017089,2]
[405389479,1771132238218,-294.28955438,0.00017322,2]
[405389481,1771132238228,-250.0,0.00017544,2]
[405389483,1771132238237,-202.61365447,0.00017808,2]
[405389485,1771132238247,-300.0,0.00017956,2]
[405389487,1771132238257,-1058.68826955,0.00017957,2]
[405389590,1771132246443,-463.79011766,0.00017957,2]
[405389591,1771132247412,-963.04611569,0.00017957,2]
[405389592,1771132247422,-500.0,0.00017999,2]
[405389593,1771132247431,-500.0,0.00017999,2]
[405389594,1771132247441,-500.0,0.00017999,2]
[405389595,1771132247450,-500.0,0.00017999,2]
[405389596,1771132247460,-4634.07346664,0.00018,2]
[405389600,1771133343340,565.82494309,0.00014852,2]
[405389601,1771133345121,-150.0,0.00015632,2]
[405389602,1771133345143,-234.0,0.00015632,2]
[405389603,1771133345163,-207.0,0.00015632,2]
[405389604,1771133345186,-300.0,0.00015632,2]
[405389605,1771133345206,-1200.0,0.00015632,2]
[405389606,1771133345230,-300.0,0.00015632,2]
[405389607,1771133345252,-1808.82917807,0.00015633,2]
[405389608,1771133345274,-300.10268619,0.00015633,2]
[405389609,1771133345298,-309.22354745,0.00015633,2]
[405389610,1771133345319,-92.81255235,0.00016,2]
[405389611,1771133346335,1018.48489756,0.00014852,2]
[405389612,1771133403088,170.5088021,0.00028986,120]
[405389641,1771133438303,-124.01084951,0.00016,2]
[405389642,1771133438313,-652.0,0.00016,2]
[405389643,1771133438322,-165.04888163,0.00016438,2]
[405389644,1771133438331,-533.87333165,0.00016456,2]
[405389645,1771133438340,-949.10814516,0.00016456,2]
[405389646,1771133438350,-165.76684746,0.00016456,2]
[405389647,1771133438361,-298.08194511,0.00016456,2]
[405389648,1771133438370,-1000.0,0.00016515,2]
[405389649,1771133438379,-476.922148,0.00016567,2]
[405389650,1771133438389,-186.9532786,0.00016628,2]
[405389652,1771133438398,-272.09272872,0.00016913,2]
[405389653,1771133438408,-509.95324261,0.00016922,2]
[405389687,1771133446328,-676.03372964,0.00016774,2]
[405389688,1771133446340,-465.70337862,0.00016774,2]
[405389689,1771133446351,-3887.10004124,0.00016774,2]
[405389690,1771133446361,-845.03295399,0.00016922,2]
[405389691,1771133446370,-300.0,0.00016999,2]
[405389692,1771133446381,-533.29445218,0.00016999,2]
[405389693,1771133446391,-500.0,0.00016999,2]
[405389694,1771133446400,-219.87631982,0.00016999,2]
[405389695,1771133446411,-500.0,0.00016999,2]
[405389696,1771133446420,-254.69623277,0.00017,2]
[405389697,1771133446435,-8162.01138886,0.00017,2]
[405389698,1771133446446,-454.932072,0.00017,2]
[405389699,1771133448107,373.62019679,0.00029811,120]
[405389700,1771133481284,-633.57905839,0.00016999,2]
[405389701,1771133510504,-133.57905839,0.00016999,2]
[405389710,1771134114649,531.06,0.00030137,120]
[405389712,1771134373905,364.59466729,0.000165,3]
[405389716,1771134477307,296.59629536,0.00014852,2]
[405389769,1771134638695,-150.0,0.00015633,2]
[405389771,1771134638706,-234.0,0.00015998,2]
[405389773,1771134638715,-300.0,0.00015998,2]
[405389775,1771134638725,-300.0,0.00015998,2]
[405389777,1771134638735,-207.0,0.00015998,2]
[405389779,1771134638745,-245.0,0.00015998,2]
[405389781,1771134638754,-500.0,0.00015999,2]
[405389783,1771134638764,-569.00737656,0.00015999,2]
[405389785,1771134638774,-519.50054607,0.00015999,2]
[405389787,1771134638783,-502.00812659,0.00015999,2]
[405389789,1771134638792,-500.0,0.00015999,2]
[405389791,1771134638802,-500.0,0.00015999,2]
[405389793,1771134638811,-500.0,0.00015999,2]
[405389795,1771134638820,-336.69879997,0.00015999,2]
[405389900,1771134640728,-163.30120003,0.00015999,2]
[405389901,1771134640737,-500.0,0.00015999,2]
[405389902,1771134640747,-500.0,0.00015999,2]
[405389903,1771134640756,-436.69879997,0.00015999,2]
[405389904,1771134640769,-63.30120003,0.00015999,2]
[405389905,1771134640779,-500.0,0.00015999,2]
[405389906,1771134640790,-500.0,0.00015999,2]
[405389907,1771134640799,-289.4221658,0.00015999,2]
[405389908,1771134640809,-500.0,0.00015999,2]
[405389909,1771134640818,-300.0,0.00015999,2]
[405389910,1771134640827,-500.0,0.00015999,2]
[405389911,1771134640836,-500.0,0.00015999,2]
[405389912,1771134640845,-462.74882529,0.00015999,2]
[405389913,1771134640855,-8655.14812886,0.00016,2]
[405389935,1771134646497,-9480.20788577,0.00016,2]
[405389936,1771134646508,-151.0,0.00016,2]
[405389937,1771134646518,-151.0,0.00016,2]
[405389938,1771134646529,-500.0,0.00016438,2]
[405389939,1771134646539,-500.0,0.00016438,2]
[405389940,1771134646548,-500.0,0.00016438,2]
[405389941,1771134646558,-406.84386702,0.00016438,2]
[405389942,1771134646569,-165.04888163,0.00016438,2]
[405389943,1771134646580,-154.890977,0.00016975,2]
[405389944,1771134646590,-490.0,0.00016975,2]
[405389945,1771134646601,-29790.8323889,0.00016976,2]
[405389946,1771134646610,-153.126267,0.00016976,2]
[405389947,1771134646621,-1163.28932271,0.00016976,2]
[405389948,1771134646661,-849.38349599,0.00016976,2]
[405389949,1771134646670,-2562.239938,0.00016976,2]
[405389950,1771134646680,-170.736039,0.00016976,2]
[405389951,1771134646690,-7761.49103584,0.00016976,2]
[405389954,1771134646938,-470.55454218,0.00016976,2]
[405389955,1771134648016,-19660.59529188,0.00016976,2]
[405389956,1771134648149,-463.7901179,0.00016976,2]
[405389957,1771134648158,-156.9719626,0.00016976,2]
[405389958,1771134648166,-151.0,0.00016976,2]
[405389959,1771134648175,-151.0,0.00016976,2]
[405389960,1771134648185,-151.0,0.00016976,2]
[405389961,1771134648194,-151.0,0.00016976,2]
[405389962,1771134648203,-151.0,0.00016976,2]
[405389963,1771134648213,-292.339266,0.00016976,2]
[405389964,1771134648222,-1800.49523497,0.00017,2]
[405389965,1771134648231,-215.22,0.00017,2]
[405389966,1771134648240,-153.0,0.00017,2]
[405389967,1771134648250,-153.0,0.00017,2]
[405389968,1771134648259,-153.0,0.00017,2]
[405389969,1771134648269,-153.0,0.00017,2]
[405389970,1771134648279,-153.0,0.00017,2]
[405389971,1771134648288,-153.0,0.00017,2]
[405389972,1771134648297,-153.0,0.00017,2]
[405389973,1771134648307,-153.0,0.00017,2]
[405389974,1771134648316,-153.0,0.00017,2]
[405389975,1771134648326,-153.0,0.00017,2]
[405389976,1771134648335,-153.0,0.00017,2]
[405389977,1771134648345,-153.0,0.00017,2]
[405389978,1771134648354,-153.0,0.00017,2]
[405389979,1771134648363,-153.0,0.00017,2]
[405389980,1771134648372,-153.0,0.00017,2]
[405389981,1771134648382,-153.0,0.00017,2]
[405389982,1771134648392,-153.0,0.00017,2]
[405389983,1771134648401,-153.0,0.00017,2]
[405389984,1771134648410,-153.0,0.00017,2]
[405389985,1771134648419,-153.0,0.00017,2]
[405389986,1771134648428,-153.0,0.00017,2]
[405389987,1771134648438,-153.0,0.00017,2]
[405389988,1771134648447,-153.0,0.00017,2]
[405389989,1771134648456,-153.0,0.00017,2]
[405389990,1771134648465,-153.0,0.00017,2]
[405389991,1771134648474,-153.0,0.00017,2]
[405389992,1771134648483,-153.0,0.00017,2]
[405389993,1771134648492,-153.0,0.00017,2]
[405389994,1771134648501,-153.0,0.00017,2]
[405389995,1771134648511,-153.0,0.00017,2]
[405389996,1771134648519,-153.0,0.00017,2]
[405389997,1771134648528,-153.0,0.00017,2]
[405389998,1771134648537,-153.0,0.00017,2]
[405389999,1771134648546,-153.0,0.00017,2]
[405390000,1771134648555,-153.0,0.00017,2]
[405390001,1771134648564,-153.0,0.00017,2]
[405390002,1771134648573,-153.0,0.00017,2]
[405390003,1771134648582,-153.0,0.00017,2]
[405390004,1771134648591,-153.0,0.00017,2]
[405390005,1771134648600,-153.0,0.00017,2]
[405390006,1771134648610,-153.0,0.00017,2]
[405390007,1771134648619,-247.15818572,0.00017,2]